[Event "Titled Tuesday Blitz June 28 Early 2022"]
[White "Yang, Kaiqi"]
[Black "Maiorov, Nikita"]
[WhiteFideId "8604398"]
[BlackFideId "13501720"]
[WhiteElo "2373"]
[BlackElo "2417"]
[Result "1/2-1/2"]
[Round "07"]
[TimeControl "180+1"]
[Date "2022.06.28"]
[WhiteClock "0:00:03"]
[BlackClock "0:00:32"]

1. d4 {[%clk 0:03:00]}  f5 {[%clk 0:02:57]} 2. Bg5 {[%clk 0:02:59]}  Nf6 {[%clk 0:02:53]} 3. Bxf6 {[%clk 0:02:59]}  exf6 {[%clk 0:02:53]} 4. e3 {[%clk 0:02:59]}  d5 {[%clk 0:02:53]} 5. c4 {[%clk 0:03:00]}  dxc4 {[%clk 0:02:24]} 6. Bxc4 {[%clk 0:02:59]}  Bd6 {[%clk 0:02:24]} 7. Ne2 {[%clk 0:02:53]}  c6 {[%clk 0:02:23]} 8. Nbc3 {[%clk 0:02:52]}  Qe7 {[%clk 0:02:22]} 9. O-O {[%clk 0:02:40]}  Nd7 {[%clk 0:02:21]} 10. Nf4 {[%clk 0:02:33]}  g6 {[%clk 0:02:15]} 11. Bb3 {[%clk 0:02:14]}  Nb6 {[%clk 0:02:15]} 12. Re1 {[%clk 0:02:12]}  Kf8 {[%clk 0:02:09]} 13. d5 {[%clk 0:02:04]}  Kg7 {[%clk 0:02:04]} 14. dxc6 {[%clk 0:01:59]}  bxc6 {[%clk 0:02:03]} 15. Nce2 {[%clk 0:01:53]}  c5 {[%clk 0:01:55]} 16. Nc3 {[%clk 0:01:47]}  Rd8 {[%clk 0:01:52]} 17. Ncd5 {[%clk 0:01:47]}  Nxd5 {[%clk 0:01:52]} 18. Nxd5 {[%clk 0:01:38]}  Qb7 {[%clk 0:01:51]} 19. Qc2 {[%clk 0:01:33]}  Bf8 {[%clk 0:01:49]} 20. Rad1 {[%clk 0:01:32]}  Be6 {[%clk 0:01:48]} 21. Nf4 {[%clk 0:01:31]}  Bxb3 {[%clk 0:01:45]} 22. axb3 {[%clk 0:01:32]}  Qf7 {[%clk 0:01:43]} 23. h4 {[%clk 0:01:26]}  Bd6 {[%clk 0:01:40]} 24. Ne2 {[%clk 0:01:03]}  Rab8 {[%clk 0:01:38]} 25. Rd3 {[%clk 0:01:02]}  Be5 {[%clk 0:01:33]} 26. Red1 {[%clk 0:01:02]}  Rxd3 {[%clk 0:01:31]} 27. Rxd3 {[%clk 0:01:03]}  c4 {[%clk 0:01:31]} 28. bxc4 {[%clk 0:00:56]}  Rxb2 {[%clk 0:01:30]} 29. Qd1 {[%clk 0:00:56]}  Qxc4 {[%clk 0:01:29]} 30. f4 {[%clk 0:00:40]}  Bc7 {[%clk 0:01:25]} 31. Kh2 {[%clk 0:00:17]}  Bb6 {[%clk 0:01:07]} 32. Rd7+ {[%clk 0:00:16]}  Kh6 {[%clk 0:01:07]} 33. Ng3 {[%clk 0:00:14]}  Qc2 {[%clk 0:01:00]} 34. Qxc2 {[%clk 0:00:14]}  Rxc2 {[%clk 0:00:59]} 35. e4 {[%clk 0:00:14]}  Be3 {[%clk 0:00:51]} 36. exf5 {[%clk 0:00:13]}  Bxf4 {[%clk 0:00:51]} 37. fxg6 {[%clk 0:00:13]}  hxg6 {[%clk 0:00:49]} 38. Rd3 {[%clk 0:00:12]}  a5 {[%clk 0:00:48]} 39. Kh3 {[%clk 0:00:12]}  a4 {[%clk 0:00:41]} 40. Ne4 {[%clk 0:00:13]}  Be5 {[%clk 0:00:39]} 41. g3 {[%clk 0:00:11]}  Rc4 {[%clk 0:00:37]} 42. Nf2 {[%clk 0:00:10]}  Rc3 {[%clk 0:00:36]} 43. Ng4+ {[%clk 0:00:10]}  Kg7 {[%clk 0:00:35]} 44. Nxe5 {[%clk 0:00:10]}  Rxd3 {[%clk 0:00:34]} 45. Nxd3 {[%clk 0:00:11]}  a3 {[%clk 0:00:34]} 46. Nb4 {[%clk 0:00:11]}  f5 {[%clk 0:00:34]} 47. Kg2 {[%clk 0:00:11]}  Kf6 {[%clk 0:00:34]} 48. Kf3 {[%clk 0:00:11]}  Ke5 {[%clk 0:00:35]} 49. Na2 {[%clk 0:00:12]}  Kd4 {[%clk 0:00:34]} 50. Kf4 {[%clk 0:00:12]}  Kd5 {[%clk 0:00:33]} 51. Kg5 {[%clk 0:00:12]}  Kc4 {[%clk 0:00:31]} 52. Kxg6 {[%clk 0:00:12]}  Kb3 {[%clk 0:00:32]} 53. Nc1+ {[%clk 0:00:12]}  Kb2 {[%clk 0:00:31]} 54. Nd3+ {[%clk 0:00:12]}  Kc3 {[%clk 0:00:32]} 55. Nc1 {[%clk 0:00:12]}  Kb2 {[%clk 0:00:32]} 56. Nd3+ {[%clk 0:00:11]}  Kc3 {[%clk 0:00:32]} 57. Nc1 {[%clk 0:00:03]}  Kb2 {[%clk 0:00:32]} 1/2-1/2


[Site "https://www.chess.com"]

[Event "Titled Tuesday Blitz June 28 Early 2022"]
[White "Zhigalko, Sergei"]
[Black "Sirosh, Ilja"]
[WhiteFideId "13502956"]
[BlackFideId "4500458"]
[WhiteElo "2662"]
[BlackElo "2241"]
[Result "1-0"]
[Round "07"]
[TimeControl "180+1"]
[Date "2022.06.28"]
[WhiteClock "0:01:18"]
[BlackClock "0:01:15"]

1. e4 {[%clk 0:03:00]}  c5 {[%clk 0:02:59]} 2. Nf3 {[%clk 0:03:00]}  d6 {[%clk 0:02:59]} 3. d4 {[%clk 0:03:01]}  cxd4 {[%clk 0:02:59]} 4. Qxd4 {[%clk 0:03:02]}  Nc6 {[%clk 0:02:59]} 5. Bb5 {[%clk 0:03:01]}  Bd7 {[%clk 0:02:59]} 6. Bxc6 {[%clk 0:03:01]}  Bxc6 {[%clk 0:02:59]} 7. Nc3 {[%clk 0:03:01]}  Nf6 {[%clk 0:02:59]} 8. Bg5 {[%clk 0:03:00]}  e6 {[%clk 0:02:59]} 9. O-O-O {[%clk 0:03:00]}  Be7 {[%clk 0:02:58]} 10. Rhe1 {[%clk 0:03:00]}  O-O {[%clk 0:02:58]} 11. Kb1 {[%clk 0:03:01]}  h5 {[%clk 0:02:36]} 12. h3 {[%clk 0:02:42]}  Qb6 {[%clk 0:02:25]} 13. Qd2 {[%clk 0:02:39]}  Rac8 {[%clk 0:02:12]} 14. g4 {[%clk 0:02:35]}  hxg4 {[%clk 0:02:08]} 15. hxg4 {[%clk 0:02:35]}  Rfe8 {[%clk 0:02:04]} 16. Nd4 {[%clk 0:02:29]}  Bd7 {[%clk 0:01:57]} 17. Rh1 {[%clk 0:02:00]}  Rxc3 {[%clk 0:01:43]} 18. Qxc3 {[%clk 0:01:58]}  Rc8 {[%clk 0:01:15]} 19. Qh3 {[%clk 0:01:49]}  Kf8 {[%clk 0:01:15]} 20. Qh8+ {[%clk 0:01:41]}  Ng8 {[%clk 0:01:15]} 21. Rh7 {[%clk 0:01:18]} 1-0


[Site "https://www.chess.com"]

[Event "Titled Tuesday Blitz June 28 Early 2022"]
[White "Adla, Diego"]
[Black "Estrada Nieto, Julian"]
[WhiteFideId "100072"]
[BlackFideId "5101018"]
[WhiteElo "2377"]
[BlackElo "2252"]
[Result "1-0"]
[Round "08"]
[TimeControl "180+1"]
[Date "2022.06.28"]
[WhiteClock "0:00:10"]
[BlackClock "0:00:09"]

1. c4 {[%clk 0:03:00]}  e5 {[%clk 0:02:59]} 2. Nc3 {[%clk 0:02:59]}  Nf6 {[%clk 0:02:59]} 3. Nf3 {[%clk 0:02:59]}  Nc6 {[%clk 0:02:59]} 4. e4 {[%clk 0:02:58]}  Bb4 {[%clk 0:02:58]} 5. d3 {[%clk 0:02:58]}  d6 {[%clk 0:02:58]} 6. Be2 {[%clk 0:02:58]}  Bg4 {[%clk 0:02:55]} 7. O-O {[%clk 0:02:57]}  Bxf3 {[%clk 0:02:54]} 8. Bxf3 {[%clk 0:02:56]}  Nd4 {[%clk 0:02:55]} 9. Be2 {[%clk 0:02:51]}  O-O {[%clk 0:02:52]} 10. Be3 {[%clk 0:02:43]}  Bc5 {[%clk 0:02:34]} 11. Qd2 {[%clk 0:02:38]}  c6 {[%clk 0:02:31]} 12. Bd1 {[%clk 0:02:37]}  a6 {[%clk 0:02:30]} 13. Ne2 {[%clk 0:02:35]}  Nxe2+ {[%clk 0:02:28]} 14. Bxe2 {[%clk 0:02:34]}  Qb6 {[%clk 0:02:22]} 15. Bxc5 {[%clk 0:02:33]}  Qxc5 {[%clk 0:02:22]} 16. Kh1 {[%clk 0:02:33]}  a5 {[%clk 0:02:20]} 17. f4 {[%clk 0:02:32]}  exf4 {[%clk 0:02:10]} 18. Rxf4 {[%clk 0:02:30]}  Qd4 {[%clk 0:02:09]} 19. Raf1 {[%clk 0:02:29]}  Nd7 {[%clk 0:02:09]} 20. Qc3 {[%clk 0:02:16]}  c5 {[%clk 0:01:58]} 21. Qxd4 {[%clk 0:01:47]}  cxd4 {[%clk 0:01:57]} 22. Kg1 {[%clk 0:01:47]}  Ne5 {[%clk 0:01:55]} 23. Kf2 {[%clk 0:01:47]}  a4 {[%clk 0:01:50]} 24. Ke1 {[%clk 0:01:46]}  Ra6 {[%clk 0:01:41]} 25. Kd2 {[%clk 0:01:46]}  Rb6 {[%clk 0:01:41]} 26. Rb1 {[%clk 0:01:46]}  Ra8 {[%clk 0:01:40]} 27. Rff1 {[%clk 0:01:44]}  f6 {[%clk 0:01:36]} 28. Rfc1 {[%clk 0:01:44]}  Ra5 {[%clk 0:01:35]} 29. Bd1 {[%clk 0:01:43]}  Kf8 {[%clk 0:01:33]} 30. Rc2 {[%clk 0:01:31]}  Ke7 {[%clk 0:01:33]} 31. b4 {[%clk 0:01:31]}  axb3 {[%clk 0:01:32]} 32. axb3 {[%clk 0:01:32]}  Nc6 {[%clk 0:01:24]} 33. Rcb2 {[%clk 0:01:27]}  Nb4 {[%clk 0:01:23]} 34. Be2 {[%clk 0:01:23]}  Rba6 {[%clk 0:01:21]} 35. Kc1 {[%clk 0:01:21]}  Ra1 {[%clk 0:01:18]} 36. Kd2 {[%clk 0:01:03]}  Rxb1 {[%clk 0:01:15]} 37. Rxb1 {[%clk 0:01:04]}  Ra2+ {[%clk 0:01:15]} 38. Ke1 {[%clk 0:01:04]}  Nc2+ {[%clk 0:01:09]} 39. Kf2 {[%clk 0:01:02]}  Ne3 {[%clk 0:01:10]} 40. b4 {[%clk 0:00:25]}  Nxg2 {[%clk 0:01:08]} 41. Kf3 {[%clk 0:00:25]}  Ne3 {[%clk 0:00:55]} 42. c5 {[%clk 0:00:23]}  Ke6 {[%clk 0:00:49]} 43. cxd6 {[%clk 0:00:23]}  Kxd6 {[%clk 0:00:49]} 44. Rc1 {[%clk 0:00:23]}  Rb2 {[%clk 0:00:45]} 45. Rc8 {[%clk 0:00:23]}  Rxb4 {[%clk 0:00:45]} 46. Rg8 {[%clk 0:00:23]}  g6 {[%clk 0:00:42]} 47. Rg7 {[%clk 0:00:22]}  g5 {[%clk 0:00:33]} 48. Rxh7 {[%clk 0:00:21]}  g4+ {[%clk 0:00:32]} 49. Kf4 {[%clk 0:00:21]}  Rb2 {[%clk 0:00:33]} 50. Bxg4 {[%clk 0:00:20]}  Rf2+ {[%clk 0:00:26]} 51. Bf3 {[%clk 0:00:20]}  b5 {[%clk 0:00:24]} 52. h4 {[%clk 0:00:19]}  b4 {[%clk 0:00:16]} 53. Rb7 {[%clk 0:00:19]}  Rh2 {[%clk 0:00:14]} 54. h5 {[%clk 0:00:15]}  Kc5 {[%clk 0:00:11]} 55. e5 {[%clk 0:00:14]}  fxe5+ {[%clk 0:00:10]} 56. Kxe5 {[%clk 0:00:15]}  Rf2 {[%clk 0:00:06]} 57. Be4 {[%clk 0:00:14]}  Nc2 {[%clk 0:00:04]} 58. Rc7+ {[%clk 0:00:14]}  Kb6 {[%clk 0:00:03]} 59. Rb7+ {[%clk 0:00:14]}  Ka5 {[%clk 0:00:03]} 60. h6 {[%clk 0:00:14]}  Rh2 {[%clk 0:00:03]} 61. h7 {[%clk 0:00:15]}  Ka4 {[%clk 0:00:02]} 62. Rb8 {[%clk 0:00:13]}  b3 {[%clk 0:00:02]} 63. h8=Q {[%clk 0:00:12]}  Rxh8 {[%clk 0:00:02]} 64. Rxh8 {[%clk 0:00:12]}  b2 {[%clk 0:00:03]} 65. Rb8 {[%clk 0:00:13]}  Nb4 {[%clk 0:00:03]} 66. Ra8+ {[%clk 0:00:05]}  Kb3 {[%clk 0:00:04]} 67. Bd5+ {[%clk 0:00:06]}  Nxd5 {[%clk 0:00:03]} 68. Kxd5 {[%clk 0:00:05]}  b1=Q {[%clk 0:00:02]} 69. Rb8+ {[%clk 0:00:06]}  Kc2 {[%clk 0:00:03]} 70. Rxb1 {[%clk 0:00:06]}  Kxb1 {[%clk 0:00:04]} 71. Kxd4 {[%clk 0:00:06]}  Kc2 {[%clk 0:00:05]} 72. Ke4 {[%clk 0:00:07]}  Kc3 {[%clk 0:00:05]} 73. d4 {[%clk 0:00:07]}  Kc4 {[%clk 0:00:05]} 74. Ke5 {[%clk 0:00:08]}  Kb5 {[%clk 0:00:05]} 75. Kd6 {[%clk 0:00:08]}  Kb6 {[%clk 0:00:06]} 76. d5 {[%clk 0:00:08]}  Kb7 {[%clk 0:00:06]} 77. Ke7 {[%clk 0:00:08]}  Kc8 {[%clk 0:00:07]} 78. d6 {[%clk 0:00:09]}  Kb7 {[%clk 0:00:07]} 79. d7 {[%clk 0:00:09]}  Kc6 {[%clk 0:00:08]} 80. d8=Q {[%clk 0:00:09]}  Kc5 {[%clk 0:00:09]} 81. Qd3 {[%clk 0:00:10]} 1-0


[Site "https://www.chess.com"]

[Event "Titled Tuesday Blitz June 28 Early 2022"]
[White "Antonio, Jorge Carlos"]
[Black "Sadubayev, Airat"]
[WhiteFideId "113190"]
[BlackFideId "13713264"]
[WhiteElo "2247"]
[BlackElo "2230"]
[Result "1-0"]
[Round "08"]
[TimeControl "180+1"]
[Date "2022.06.28"]
[WhiteClock "0:01:23"]
[BlackClock "0:00:02"]

1. e4 {[%clk 0:03:00]}  c6 {[%clk 0:02:50]} 2. d4 {[%clk 0:02:59]}  d5 {[%clk 0:02:47]} 3. exd5 {[%clk 0:03:00]}  cxd5 {[%clk 0:02:46]} 4. Nf3 {[%clk 0:03:00]}  Nc6 {[%clk 0:02:45]} 5. Bd3 {[%clk 0:02:59]}  Nf6 {[%clk 0:02:33]} 6. c3 {[%clk 0:02:58]}  Bg4 {[%clk 0:02:28]} 7. h3 {[%clk 0:02:52]}  Bh5 {[%clk 0:02:24]} 8. Bf4 {[%clk 0:02:51]}  e6 {[%clk 0:02:20]} 9. Nbd2 {[%clk 0:02:48]}  Bd6 {[%clk 0:02:16]} 10. Bxd6 {[%clk 0:02:46]}  Qxd6 {[%clk 0:02:15]} 11. O-O {[%clk 0:02:43]}  O-O {[%clk 0:02:13]} 12. Qb3 {[%clk 0:02:38]}  b6 {[%clk 0:02:12]} 13. Rfe1 {[%clk 0:02:35]}  Bg6 {[%clk 0:02:07]} 14. Bxg6 {[%clk 0:02:32]}  hxg6 {[%clk 0:02:08]} 15. Ne5 {[%clk 0:02:25]}  Nd7 {[%clk 0:02:00]} 16. Nxd7 {[%clk 0:02:19]}  Qxd7 {[%clk 0:01:58]} 17. Qb5 {[%clk 0:02:16]}  Qc7 {[%clk 0:01:47]} 18. Nf3 {[%clk 0:02:12]}  a6 {[%clk 0:01:42]} 19. Qe2 {[%clk 0:02:08]}  b5 {[%clk 0:01:35]} 20. a3 {[%clk 0:02:07]}  Na5 {[%clk 0:01:23]} 21. h4 {[%clk 0:02:06]}  Nc4 {[%clk 0:01:14]} 22. h5 {[%clk 0:02:00]}  gxh5 {[%clk 0:01:06]} 23. g3 {[%clk 0:01:57]}  Qe7 {[%clk 0:00:47]} 24. Kg2 {[%clk 0:01:56]}  Nd6 {[%clk 0:00:17]} 25. Qe5 {[%clk 0:01:48]}  Nf5 {[%clk 0:00:13]} 26. Qxf5 {[%clk 0:01:40]}  exf5 {[%clk 0:00:11]} 27. Rxe7 {[%clk 0:01:39]}  g6 {[%clk 0:00:10]} 28. Rae1 {[%clk 0:01:34]}  Kg7 {[%clk 0:00:07]} 29. Rd7 {[%clk 0:01:31]}  Rad8 {[%clk 0:00:05]} 30. Ree7 {[%clk 0:01:28]}  Kf6 {[%clk 0:00:02]} 31. Ne5 {[%clk 0:01:23]} 1-0


[Site "https://www.chess.com"]

[Event "Titled Tuesday Blitz June 28 Early 2022"]
[White "Ardila, Oscar Humberto"]
[Black "Richter, Nils"]
[WhiteFideId "4404742"]
[BlackFideId "12990809"]
[WhiteElo "1956"]
[BlackElo "2311"]
[Result "1-0"]
[Round "08"]
[TimeControl "180+1"]
[Date "2022.06.28"]
[WhiteClock "0:00:52"]
[BlackClock "0:00:19"]

1. d4 {[%clk 0:02:59]}  Nf6 {[%clk 0:02:59]} 2. c4 {[%clk 0:02:59]}  c5 {[%clk 0:03:00]} 3. d5 {[%clk 0:02:59]}  b5 {[%clk 0:03:00]} 4. Nc3 {[%clk 0:02:58]}  b4 {[%clk 0:02:59]} 5. Nb1 {[%clk 0:02:57]}  d6 {[%clk 0:02:57]} 6. Qc2 {[%clk 0:02:57]}  g6 {[%clk 0:02:56]} 7. e4 {[%clk 0:02:57]}  Bg7 {[%clk 0:02:56]} 8. h3 {[%clk 0:02:56]}  O-O {[%clk 0:02:55]} 9. Nf3 {[%clk 0:02:57]}  a5 {[%clk 0:02:54]} 10. Bd3 {[%clk 0:02:56]}  e6 {[%clk 0:02:54]} 11. O-O {[%clk 0:02:56]}  exd5 {[%clk 0:02:53]} 12. cxd5 {[%clk 0:02:56]}  Re8 {[%clk 0:02:45]} 13. Re1 {[%clk 0:02:56]}  Nbd7 {[%clk 0:02:42]} 14. Bf4 {[%clk 0:02:55]}  Nb6 {[%clk 0:02:42]} 15. Nbd2 {[%clk 0:02:55]}  Ba6 {[%clk 0:02:34]} 16. Bxa6 {[%clk 0:02:52]}  Rxa6 {[%clk 0:02:35]} 17. Qd3 {[%clk 0:02:43]}  Ra7 {[%clk 0:02:34]} 18. Nc4 {[%clk 0:02:41]}  Nxc4 {[%clk 0:02:28]} 19. Qxc4 {[%clk 0:02:41]}  Rae7 {[%clk 0:02:23]} 20. Nd2 {[%clk 0:02:38]}  Nh5 {[%clk 0:02:21]} 21. Bg5 {[%clk 0:02:34]}  Bxb2 {[%clk 0:02:18]} 22. Bxe7 {[%clk 0:02:32]}  Qxe7 {[%clk 0:02:17]} 23. Rad1 {[%clk 0:02:28]}  Nf4 {[%clk 0:02:11]} 24. Qf1 {[%clk 0:02:10]}  Bc3 {[%clk 0:02:07]} 25. g3 {[%clk 0:02:09]}  Qg5 {[%clk 0:01:54]} 26. Kh2 {[%clk 0:02:05]}  Bxd2 {[%clk 0:01:49]} 27. Rxd2 {[%clk 0:02:01]}  Ne6 {[%clk 0:01:40]} 28. f4 {[%clk 0:01:49]}  Nxf4 {[%clk 0:01:36]} 29. Qxf4 {[%clk 0:01:48]}  Qxf4 {[%clk 0:01:35]} 30. gxf4 {[%clk 0:01:48]}  c4 {[%clk 0:01:36]} 31. Kg3 {[%clk 0:01:43]}  c3 {[%clk 0:01:35]} 32. Rc2 {[%clk 0:01:41]}  Rc8 {[%clk 0:01:34]} 33. Kf3 {[%clk 0:01:38]}  a4 {[%clk 0:01:34]} 34. Rb1 {[%clk 0:01:37]}  Rc4 {[%clk 0:01:33]} 35. Ke3 {[%clk 0:01:37]}  f5 {[%clk 0:01:31]} 36. e5 {[%clk 0:01:33]}  dxe5 {[%clk 0:01:27]} 37. fxe5 {[%clk 0:01:33]}  Kf7 {[%clk 0:01:27]} 38. Kd3 {[%clk 0:01:32]}  Rh4 {[%clk 0:01:24]} 39. Re2 {[%clk 0:01:24]}  Rxh3+ {[%clk 0:01:20]} 40. Kc4 {[%clk 0:01:24]}  Rh4+ {[%clk 0:01:20]} 41. Kc5 {[%clk 0:01:24]}  f4 {[%clk 0:01:13]} 42. e6+ {[%clk 0:01:24]}  Ke8 {[%clk 0:01:12]} 43. d6 {[%clk 0:01:23]}  f3 {[%clk 0:01:10]} 44. Rf2 {[%clk 0:01:22]}  Re4 {[%clk 0:01:06]} 45. Kd5 {[%clk 0:01:20]}  Re2 {[%clk 0:00:57]} 46. Rxf3 {[%clk 0:01:19]}  c2 {[%clk 0:00:56]} 47. Rc1 {[%clk 0:01:18]}  Rd2+ {[%clk 0:00:48]} 48. Kc6 {[%clk 0:01:17]}  g5 {[%clk 0:00:46]} 49. Rcf1 {[%clk 0:01:06]}  c1=Q+ {[%clk 0:00:36]} 50. Rxc1 {[%clk 0:01:04]}  g4 {[%clk 0:00:35]} 51. Re3 {[%clk 0:00:55]}  h5 {[%clk 0:00:30]} 52. Rf1 {[%clk 0:00:54]}  Rc2+ {[%clk 0:00:25]} 53. Kb5 {[%clk 0:00:54]}  h4 {[%clk 0:00:20]} 54. d7+ {[%clk 0:00:53]}  Ke7 {[%clk 0:00:19]} 55. Rf7+ {[%clk 0:00:53]}  Kd6 {[%clk 0:00:19]} 56. d8=Q# {[%clk 0:00:52]} 1-0


[Site "https://www.chess.com"]

[Event "Titled Tuesday Blitz June 28 Early 2022"]
[White "Averjanov, Alexey"]
[Black "Tan, Jun Ying"]
[WhiteFideId "14109867"]
[BlackFideId "5710413"]
[WhiteElo "2704"]
[BlackElo "1827"]
[Result "0-1"]
[Round "08"]
[TimeControl "180+1"]
[Date "2022.06.28"]
[WhiteClock "0:00:05"]
[BlackClock "0:00:19"]

1. d4 {[%clk 0:03:00]}  Nf6 {[%clk 0:02:59]} 2. c4 {[%clk 0:03:01]}  c5 {[%clk 0:02:59]} 3. d5 {[%clk 0:03:01]}  e6 {[%clk 0:03:00]} 4. Nc3 {[%clk 0:03:00]}  exd5 {[%clk 0:03:00]} 5. cxd5 {[%clk 0:03:01]}  d6 {[%clk 0:03:01]} 6. Nf3 {[%clk 0:03:01]}  g6 {[%clk 0:03:02]} 7. Nd2 {[%clk 0:03:02]}  Bg7 {[%clk 0:03:02]} 8. g3 {[%clk 0:03:01]}  O-O {[%clk 0:03:01]} 9. Bg2 {[%clk 0:03:01]}  Re8 {[%clk 0:03:01]} 10. O-O {[%clk 0:03:01]}  Nbd7 {[%clk 0:03:02]} 11. h3 {[%clk 0:03:00]}  a6 {[%clk 0:03:01]} 12. a4 {[%clk 0:03:00]}  Rb8 {[%clk 0:03:00]} 13. Nc4 {[%clk 0:03:00]}  Ne5 {[%clk 0:03:00]} 14. Ne3 {[%clk 0:02:59]}  b5 {[%clk 0:02:56]} 15. axb5 {[%clk 0:02:58]}  axb5 {[%clk 0:02:56]} 16. f4 {[%clk 0:02:59]}  Nc4 {[%clk 0:02:54]} 17. Nxc4 {[%clk 0:02:58]}  bxc4 {[%clk 0:02:55]} 18. e4 {[%clk 0:02:55]}  Nh5 {[%clk 0:02:47]} 19. Kh2 {[%clk 0:02:51]}  f5 {[%clk 0:02:46]} 20. exf5 {[%clk 0:02:46]}  Bxf5 {[%clk 0:02:46]} 21. g4 {[%clk 0:02:45]}  Bd3 {[%clk 0:02:40]} 22. gxh5 {[%clk 0:02:43]}  Bxf1 {[%clk 0:02:39]} 23. Qxf1 {[%clk 0:02:44]}  gxh5 {[%clk 0:02:33]} 24. Qxc4 {[%clk 0:02:41]}  Qh4 {[%clk 0:02:27]} 25. Ra7 {[%clk 0:02:33]}  Bd4 {[%clk 0:02:21]} 26. Qd3 {[%clk 0:02:22]}  Re7 {[%clk 0:02:10]} 27. Rxe7 {[%clk 0:02:13]}  Qxe7 {[%clk 0:02:11]} 28. Ne4 {[%clk 0:01:52]}  h4 {[%clk 0:01:53]} 29. Ng5 {[%clk 0:01:46]}  Bxb2 {[%clk 0:01:39]} 30. Bxb2 {[%clk 0:01:43]}  Rxb2 {[%clk 0:01:38]} 31. Ne6 {[%clk 0:01:35]}  Qf6 {[%clk 0:01:29]} 32. Qf3 {[%clk 0:01:31]}  c4 {[%clk 0:01:17]} 33. Qa3 {[%clk 0:01:28]}  c3 {[%clk 0:00:38]} 34. Qa8+ {[%clk 0:01:01]}  Kf7 {[%clk 0:00:39]} 35. Qf8+ {[%clk 0:00:55]}  Kg6 {[%clk 0:00:39]} 36. Qg8+ {[%clk 0:00:32]}  Kh6 {[%clk 0:00:39]} 37. Qg4 {[%clk 0:00:21]}  c2 {[%clk 0:00:35]} 38. f5 {[%clk 0:00:21]}  Qe5+ {[%clk 0:00:26]} 39. Nf4 {[%clk 0:00:21]}  c1=Q {[%clk 0:00:24]} 40. Qxh4+ {[%clk 0:00:17]}  Kg7 {[%clk 0:00:25]} 41. Qg5+ {[%clk 0:00:17]}  Kf7 {[%clk 0:00:22]} 42. Qh5+ {[%clk 0:00:15]}  Kg8 {[%clk 0:00:22]} 43. Qg5+ {[%clk 0:00:14]}  Kf8 {[%clk 0:00:18]} 44. Qd8+ {[%clk 0:00:13]}  Kf7 {[%clk 0:00:14]} 45. Qd7+ {[%clk 0:00:09]}  Qe7 {[%clk 0:00:15]} 46. Qe6+ {[%clk 0:00:08]}  Qxe6 {[%clk 0:00:15]} 47. dxe6+ {[%clk 0:00:06]}  Kf8 {[%clk 0:00:15]} 48. Nd5 {[%clk 0:00:04]}  Rxg2+ {[%clk 0:00:15]} 49. Kxg2 {[%clk 0:00:04]}  Qc6 {[%clk 0:00:15]} 50. Kg3 {[%clk 0:00:03]}  Qxd5 {[%clk 0:00:16]} 51. Kf4 {[%clk 0:00:03]}  Qe5+ {[%clk 0:00:16]} 52. Kg5 {[%clk 0:00:04]}  Ke7 {[%clk 0:00:17]} 53. h4 {[%clk 0:00:04]}  Qf6+ {[%clk 0:00:17]} 54. Kg4 {[%clk 0:00:03]}  h5+ {[%clk 0:00:18]} 55. Kxh5 {[%clk 0:00:02]}  Qxf5+ {[%clk 0:00:18]} 56. Kh6 {[%clk 0:00:03]}  Qxe6+ {[%clk 0:00:18]} 57. Kh5 {[%clk 0:00:03]}  Qf5+ {[%clk 0:00:19]} 58. Kh6 {[%clk 0:00:03]}  d5 {[%clk 0:00:19]} 59. h5 {[%clk 0:00:04]}  d4 {[%clk 0:00:18]} 60. Kg7 {[%clk 0:00:04]}  Qxh5 {[%clk 0:00:18]} 61. Kg8 {[%clk 0:00:04]}  Qf5 {[%clk 0:00:17]} 62. Kh8 {[%clk 0:00:04]}  Qg5 {[%clk 0:00:18]} 63. Kh7 {[%clk 0:00:04]}  Kf7 {[%clk 0:00:19]} 64. Kh8 {[%clk 0:00:05]}  Qg7# {[%clk 0:00:19]} 0-1


[Site "https://www.chess.com"]

[Event "Titled Tuesday Blitz June 28 Early 2022"]
[White "Barp, Alberto"]
[Black "Kjartansson, David"]
[WhiteFideId "872555"]
[BlackFideId "2301130"]
[WhiteElo "2229"]
[BlackElo "2382"]
[Result "0-1"]
[Round "08"]
[TimeControl "180+1"]
[Date "2022.06.28"]
[WhiteClock "0:01:05"]
[BlackClock "0:01:51"]

1. Nf3 {[%clk 0:02:57]}  d6 {[%clk 0:02:59]} 2. g3 {[%clk 0:02:48]}  Nf6 {[%clk 0:03:00]} 3. Bg2 {[%clk 0:02:46]}  Nbd7 {[%clk 0:02:58]} 4. O-O {[%clk 0:02:41]}  e5 {[%clk 0:02:57]} 5. c4 {[%clk 0:02:35]}  Be7 {[%clk 0:02:57]} 6. Nc3 {[%clk 0:02:27]}  c6 {[%clk 0:02:58]} 7. b4 {[%clk 0:02:28]}  d5 {[%clk 0:02:53]} 8. cxd5 {[%clk 0:02:26]}  cxd5 {[%clk 0:02:54]} 9. Qb3 {[%clk 0:02:27]}  d4 {[%clk 0:02:52]} 10. Nd5 {[%clk 0:02:24]}  Bd6 {[%clk 0:02:48]} 11. Ng5 {[%clk 0:02:08]}  O-O {[%clk 0:02:45]} 12. Nxf6+ {[%clk 0:02:01]}  Nxf6 {[%clk 0:02:42]} 13. e3 {[%clk 0:01:58]}  h6 {[%clk 0:02:40]} 14. Ne4 {[%clk 0:01:58]}  Be6 {[%clk 0:02:37]} 15. Qb2 {[%clk 0:01:58]}  Nxe4 {[%clk 0:02:33]} 16. Bxe4 {[%clk 0:01:59]}  f5 {[%clk 0:02:31]} 17. Bxb7 {[%clk 0:01:49]}  Rb8 {[%clk 0:02:30]} 18. Bg2 {[%clk 0:01:49]}  Rxb4 {[%clk 0:02:26]} 19. Qc2 {[%clk 0:01:49]}  Qd7 {[%clk 0:02:25]} 20. exd4 {[%clk 0:01:47]}  Rc8 {[%clk 0:02:23]} 21. Qd1 {[%clk 0:01:44]}  e4 {[%clk 0:02:24]} 22. f3 {[%clk 0:01:33]}  Be5 {[%clk 0:01:58]} 23. dxe5 {[%clk 0:01:19]}  Qd4+ {[%clk 0:01:58]} 24. Kh1 {[%clk 0:01:18]}  Qxa1 {[%clk 0:01:59]} 25. fxe4 {[%clk 0:01:18]}  Rb1 {[%clk 0:01:54]} 26. exf5 {[%clk 0:01:05]}  Rcxc1 {[%clk 0:01:51]} 0-1


[Site "https://www.chess.com"]